Workbook

Sheet Vodič
B2: LIČNI TOK NOVCA
B3: Ova radna sveska ima godišnje, mesečne i dnevne radne listove tokova novca. Odaberite tip toka novca koji vam najviše odgovara ili ih koristite sve da biste stekli uvid u lični tok novca.
B5: Dnevni tok novca | E5: Mesečni tok novca | H5: Godišnji tok novca
B7: Unesite predviđeni iznos protoka gotovine u toku dana i pregledajte procenjene mesečne i godišnje ukupne vrednosti. Koristite ovo da biste dobili uvid u to kako će izgledati dnevne navike potrošnje tokom meseca ili godine. | E7: Unesite mesečni tok novca koji iskusite na mesečnom nivou ili procenite preostale mesece da biste videli predviđeni tok novca za godinu za svaki mesec. | H7: Unesite godišnji iznos toka novca u četiri radna lista: Prihod, troškovi, diskrecioni i štednja. Pogledajte mesečnu analizu i sva poređenja i, što je najvažnije, koji je ukupni iznos u godišnjim i mesečnim ciframa.

Sheet Dnevni tok novca
B1: LIČNI TOK NOVCA
C2: Ukupan dostupan novac: | D2: =DailyCashFlow -> 10,416.67 RSD | F2: NAPOMENA: Ako želite da dodate dnevne stavke u tabelu, procenite mesečni iznos/vrednost i postavite vrednost u odgovarajuću kolonu meseca.
B4: DNEVNI REZIME
B5: Ukupne vrednosti | C5: Dnevno | D5: Mesečna | E5: Godišnja
B6: Prihod | C6: =SUMIF(Dnevna[Tip],$B6,Dnevna[Dnevna]) -> 342.47 RSD | D6: =SUMIF(Dnevna[Tip],$B6,Dnevna[Mesečna]) -> 10,416.80 RSD | E6: =SUMIF(Dnevna[Tip],$B6,Dnevna[Godišnji]) -> 125,001.55 RSD
B7: Troškovi | C7: =SUMIF(Dnevna[Tip],$B7,Dnevna[Dnevna]) -> 136.06 RSD | D7: =SUMIF(Dnevna[Tip],$B7,Dnevna[Mesečna]) -> 4,138.49 RSD | E7: =SUMIF(Dnevna[Tip],$B7,Dnevna[Godišnji]) -> 49,661.90 RSD
B8: Opcionalni | C8: =SUMIF(Dnevna[Tip],$B8,Dnevna[Dnevna]) -> 36.29 RSD | D8: =SUMIF(Dnevna[Tip],$B8,Dnevna[Mesečna]) -> 1,103.82 RSD | E8: =SUMIF(Dnevna[Tip],$B8,Dnevna[Godišnji]) -> 13,245.85 RSD
B9: Štednja | C9: =SUMIF(Dnevna[Tip],$B9,Dnevna[Dnevna]) -> 63.02 RSD | D9: =SUMIF(Dnevna[Tip],$B9,Dnevna[Mesečna]) -> 1,916.86 RSD | E9: =SUMIF(Dnevna[Tip],$B9,Dnevna[Godišnji]) -> 23,002.30 RSD
B11: Tip | C11: Opis | D11: Dnevna | E11: Mesečna | F11: Godišnji
B12: Prihod | C12: Plata | D12: 246.58 RSD | E12: =Dnevna[[#This Row],[Godišnji]]/12 -> 7,500.14 RSD | F12: =Dnevna[[#This Row],[Dnevna]]*365 -> 90,001.70 RSD
B13: Prihod | C13: Provizija/bonus | D13: 13.70 RSD | E13: =Dnevna[[#This Row],[Godišnji]]/12 -> 416.71 RSD | F13: =Dnevna[[#This Row],[Dnevna]]*365 -> 5,000.50 RSD
B14: Prihod | C14: Drugo 1 | D14: 82.19 RSD | E14: =Dnevna[[#This Row],[Godišnji]]/12 -> 2,499.95 RSD | F14: =Dnevna[[#This Row],[Dnevna]]*365 -> 29,999.35 RSD
B15: Prihod | C15: Drugo 2 | D15: 0.00 RSD | E15: =Dnevna[[#This Row],[Godišnji]]/12 -> 0.00 RSD | F15: =Dnevna[[#This Row],[Dnevna]]*365 -> 0.00 RSD
B16: Prihod | C16: Drugo 3 | D16: 0.00 RSD | E16: =Dnevna[[#This Row],[Godišnji]]/12 -> 0.00 RSD | F16: =Dnevna[[#This Row],[Dnevna]]*365 -> 0.00 RSD
B17: Prihod | C17: Drugo 4 | D17: 0.00 RSD | E17: =Dnevna[[#This Row],[Godišnji]]/12 -> 0.00 RSD | F17: =Dnevna[[#This Row],[Dnevna]]*365 -> 0.00 RSD
B18: Troškovi | C18: Savezni/SS/zdravstvena zaštita | D18: 41.10 RSD | E18: =Dnevna[[#This Row],[Godišnji]]/12 -> 1,250.13 RSD | F18: =Dnevna[[#This Row],[Dnevna]]*365 -> 15,001.50 RSD
B19: Troškovi | C19: Državni porez na prihod | D19: 6.85 RSD | E19: =Dnevna[[#This Row],[Godišnji]]/12 -> 208.35 RSD | F19: =Dnevna[[#This Row],[Dnevna]]*365 -> 2,500.25 RSD
B20: Troškovi | C20: Porez na vozila/naknade | D20: 0.55 RSD | E20: =Dnevna[[#This Row],[Godišnji]]/12 -> 16.73 RSD | F20: =Dnevna[[#This Row],[Dnevna]]*365 -> 200.75 RSD
B21: Troškovi | C21: Otplata vozila | D21: 10.96 RSD | E21: =Dnevna[[#This Row],[Godišnji]]/12 -> 333.37 RSD | F21: =Dnevna[[#This Row],[Dnevna]]*365 -> 4,000.40 RSD
B22: Troškovi | C22: Hipoteka/najamnina | D22: 41.10 RSD | E22: =Dnevna[[#This Row],[Godišnji]]/12 -> 1,250.13 RSD | F22: =Dnevna[[#This Row],[Dnevna]]*365 -> 15,001.50 RSD
B23: Troškovi | C23: Osiguranje | D23: 0.68 RSD | E23: =Dnevna[[#This Row],[Godišnji]]/12 -> 20.68 RSD | F23: =Dnevna[[#This Row],[Dnevna]]*365 -> 248.20 RSD
B24: Troškovi | C24: Struja | D24: 3.29 RSD | E24: =Dnevna[[#This Row],[Godišnji]]/12 -> 100.07 RSD | F24: =Dnevna[[#This Row],[Dnevna]]*365 -> 1,200.85 RSD
B25: Troškovi | C25: Gas | D25: 1.64 RSD | E25: =Dnevna[[#This Row],[Godišnji]]/12 -> 49.88 RSD | F25: =Dnevna[[#This Row],[Dnevna]]*365 -> 598.60 RSD
B26: Troškovi | C26: Voda | D26: 1.64 RSD | E26: =Dnevna[[#This Row],[Godišnji]]/12 -> 49.88 RSD | F26: =Dnevna[[#This Row],[Dnevna]]*365 -> 598.60 RSD
B27: Troškovi | C27: Kanalizacija | D27: 0.82 RSD | E27: =Dnevna[[#This Row],[Godišnji]]/12 -> 24.94 RSD | F27: =Dnevna[[#This Row],[Dnevna]]*365 -> 299.30 RSD
B28: Troškovi | C28: Smeće | D28: 0.41 RSD | E28: =Dnevna[[#This Row],[Godišnji]]/12 -> 12.47 RSD | F28: =Dnevna[[#This Row],[Dnevna]]*365 -> 149.65 RSD
B29: Troškovi | C29: Telefon | D29: 1.64 RSD | E29: =Dnevna[[#This Row],[Godišnji]]/12 -> 49.88 RSD | F29: =Dnevna[[#This Row],[Dnevna]]*365 -> 598.60 RSD
B30: Troškovi | C30: Internet | D30: 1.64 RSD | E30: =Dnevna[[#This Row],[Godišnji]]/12 -> 49.88 RSD | F30: =Dnevna[[#This Row],[Dnevna]]*365 -> 598.60 RSD
B31: Troškovi | C31: Invalidske premije | D31: 4.11 RSD | E31: =Dnevna[[#This Row],[Godišnji]]/12 -> 125.01 RSD | F31: =Dnevna[[#This Row],[Dnevna]]*365 -> 1,500.15 RSD
B32: Troškovi | C32: Hrana | D32: 13.70 RSD | E32: =Dnevna[[#This Row],[Godišnji]]/12 -> 416.71 RSD | F32: =Dnevna[[#This Row],[Dnevna]]*365 -> 5,000.50 RSD
B33: Troškovi | C33: Odeća | D33: 3.29 RSD | E33: =Dnevna[[#This Row],[Godišnji]]/12 -> 100.07 RSD | F33: =Dnevna[[#This Row],[Dnevna]]*365 -> 1,200.85 RSD
B34: Troškovi | C34: Medicinski/zubni/Rx | D34: 1.64 RSD | E34: =Dnevna[[#This Row],[Godišnji]]/12 -> 49.88 RSD | F34: =Dnevna[[#This Row],[Dnevna]]*365 -> 598.60 RSD
B35: Troškovi | C35: Autobus | D35: 1.00 RSD | E35: =Dnevna[[#This Row],[Godišnji]]/12 -> 30.42 RSD | F35: =Dnevna[[#This Row],[Dnevna]]*365 -> 365.00 RSD
B36: Troškovi | C36: Drugo 2 | D36: 0.00 RSD | E36: =Dnevna[[#This Row],[Godišnji]]/12 -> 0.00 RSD | F36: =Dnevna[[#This Row],[Dnevna]]*365 -> 0.00 RSD
B37: Troškovi | C37: Drugo 3 | D37: 0.00 RSD | E37: =Dnevna[[#This Row],[Godišnji]]/12 -> 0.00 RSD | F37: =Dnevna[[#This Row],[Dnevna]]*365 -> 0.00 RSD
B38: Troškovi | C38: Drugo 4 | D38: 0.00 RSD | E38: =Dnevna[[#This Row],[Godišnji]]/12 -> 0.00 RSD | F38: =Dnevna[[#This Row],[Dnevna]]*365 -> 0.00 RSD
B39: Opcionalni | C39: Večere | D39: 3.29 RSD | E39: =Dnevna[[#This Row],[Godišnji]]/12 -> 100.07 RSD | F39: =Dnevna[[#This Row],[Dnevna]]*365 -> 1,200.85 RSD
B40: Opcionalni | C40: Pokloni | D40: 1.64 RSD | E40: =Dnevna[[#This Row],[Godišnji]]/12 -> 49.88 RSD | F40: =Dnevna[[#This Row],[Dnevna]]*365 -> 598.60 RSD
B41: Opcionalni | C41: Putovanja | D41: 6.16 RSD | E41: =Dnevna[[#This Row],[Godišnji]]/12 -> 187.37 RSD | F41: =Dnevna[[#This Row],[Dnevna]]*365 -> 2,248.40 RSD
B42: Opcionalni | C42: Zabava | D42: 3.29 RSD | E42: =Dnevna[[#This Row],[Godišnji]]/12 -> 100.07 RSD | F42: =Dnevna[[#This Row],[Dnevna]]*365 -> 1,200.85 RSD
B43: Opcionalni | C43: Lična nega | D43: 0.82 RSD | E43: =Dnevna[[#This Row],[Godišnji]]/12 -> 24.94 RSD | F43: =Dnevna[[#This Row],[Dnevna]]*365 -> 299.30 RSD
B44: Opcionalni | C44: Kupovina | D44: 5.48 RSD | E44: =Dnevna[[#This Row],[Godišnji]]/12 -> 166.68 RSD | F44: =Dnevna[[#This Row],[Dnevna]]*365 -> 2,000.20 RSD
B45: Opcionalni | C45: Dobrotvorni prilog | D45: 1.64 RSD | E45: =Dnevna[[#This Row],[Godišnji]]/12 -> 49.88 RSD | F45: =Dnevna[[#This Row],[Dnevna]]*365 -> 598.60 RSD
B46: Opcionalni | C46: Klub/članstva | D46: 0.82 RSD | E46: =Dnevna[[#This Row],[Godišnji]]/12 -> 24.94 RSD | F46: =Dnevna[[#This Row],[Dnevna]]*365 -> 299.30 RSD
B47: Opcionalni | C47: Radovi u kući | D47: 13.15 RSD | E47: =Dnevna[[#This Row],[Godišnji]]/12 -> 399.98 RSD | F47: =Dnevna[[#This Row],[Dnevna]]*365 -> 4,799.75 RSD
B48: Opcionalni | C48: Drugo 1 | D48: 0.00 RSD | E48: =Dnevna[[#This Row],[Godišnji]]/12 -> 0.00 RSD | F48: =Dnevna[[#This Row],[Dnevna]]*365 -> 0.00 RSD
B49: Opcionalni | C49: Drugo 2 | D49: 0.00 RSD | E49: =Dnevna[[#This Row],[Godišnji]]/12 -> 0.00 RSD | F49: =Dnevna[[#This Row],[Dnevna]]*365 -> 0.00 RSD
B50: Štednja | C50: Rezerve gotovine | D50: 13.70 RSD | E50: =Dnevna[[#This Row],[Godišnji]]/12 -> 416.71 RSD | F50: =Dnevna[[#This Row],[Dnevna]]*365 -> 5,000.50 RSD
B51: Štednja | C51: 401(k)/itd. | D51: 32.88 RSD | E51: =Dnevna[[#This Row],[Godišnji]]/12 -> 1,000.10 RSD | F51: =Dnevna[[#This Row],[Dnevna]]*365 -> 12,001.20 RSD
B52: Štednja | C52: Štedni račun | D52: 16.44 RSD | E52: =Dnevna[[#This Row],[Godišnji]]/12 -> 500.05 RSD | F52: =Dnevna[[#This Row],[Dnevna]]*365 -> 6,000.60 RSD
B53: Štednja | C53: Drugo 1 | D53: 0.00 RSD | E53: =Dnevna[[#This Row],[Godišnji]]/12 -> 0.00 RSD | F53: =Dnevna[[#This Row],[Dnevna]]*365 -> 0.00 RSD
B54: Štednja | C54: Drugo 2 | D54: 0.00 RSD | E54: =Dnevna[[#This Row],[Godišnji]]/12 -> 0.00 RSD | F54: =Dnevna[[#This Row],[Dnevna]]*365 -> 0.00 RSD
B55: Zbir | D55: =SUMIF(Dnevna[Tip],"Prihod",Dnevna[Dnevna])-SUMIF(Dnevna[Tip],"<>Prihod",Dnevna[Dnevna]) -> 107.10 RSD | E55: =SUMIF(Dnevna[Tip],"Prihod",Dnevna[Mesečna])-SUMIF(Dnevna[Tip],"<>Prihod",Dnevna[Mesečna]) -> 3,257.63 RSD | F55: =SUMIF(Dnevna[Tip],"Prihod",Dnevna[Godišnji])-SUMIF(Dnevna[Tip],"<>Prihod",Dnevna[Godišnji]) -> 39,091.50 RSD

Sheet Mesečni tok novca
B1: LIČNI TOK NOVCA
C2: Ukupni mesečni tok novca: | D2: =MonthlyCashFlowToDate -> 18,380.00 RSD | F2: NAPOMENA: Za dnevne stavke, procenite mesečni iznos/vrednost i postavite vrednost u odgovarajuću kolonu meseca.
B4: Tip | C4: Opis | D4: jan | E4: feb | F4: mar | G4: Apr | H4: Maj | I4: Jun | J4: Jul | K4: Avg | L4: Sep | M4: Okt | N4: Nov | O4: Dec | P4: Zbir
B5: Prihod | C5: Plata | D5: 7,500.00 RSD | E5: 7,500.00 RSD | F5: 7,500.00 RSD | G5: 7,500.00 RSD | H5: 7,500.00 RSD | I5: 7,500.00 RSD | P5: =SUM(Mesečno[[#This Row],[jan]:[Dec]]) -> 45,000.00 RSD
B6: Prihod | C6: Provizija/bonus | D6: 400.00 RSD | E6: 400.00 RSD | F6: 500.00 RSD | G6: 200.00 RSD | H6: 0.00 RSD | I6: 600.00 RSD | P6: =SUM(Mesečno[[#This Row],[jan]:[Dec]]) -> 2,100.00 RSD
B7: Prihod | C7: Drugo 1 | D7: 2,500.00 RSD | E7: 2,500.00 RSD | F7: 2,500.00 RSD | G7: 2,500.00 RSD | H7: 2,500.00 RSD | I7: 2,500.00 RSD | P7: =SUM(Mesečno[[#This Row],[jan]:[Dec]]) -> 15,000.00 RSD
B8: Prihod | C8: Drugo 2 | D8: 0.00 RSD | E8: 0.00 RSD | F8: 0.00 RSD | G8: 0.00 RSD | H8: 0.00 RSD | I8: 0.00 RSD | P8: =SUM(Mesečno[[#This Row],[jan]:[Dec]]) -> 0.00 RSD
B9: Prihod | C9: Drugo 3 | D9: 0.00 RSD | E9: 0.00 RSD | F9: 0.00 RSD | G9: 0.00 RSD | H9: 0.00 RSD | I9: 0.00 RSD | P9: =SUM(Mesečno[[#This Row],[jan]:[Dec]]) -> 0.00 RSD
B10: Prihod | C10: Drugo 4 | D10: 0.00 RSD | E10: 0.00 RSD | F10: 0.00 RSD | G10: 0.00 RSD | H10: 0.00 RSD | I10: 0.00 RSD | P10: =SUM(Mesečno[[#This Row],[jan]:[Dec]]) -> 0.00 RSD
B11: Troškovi | C11: Savezni/SS/zdravstvena zaštita | D11: 1,250.00 RSD | E11: 1,250.00 RSD | F11: 1,250.00 RSD | G11: 1,250.00 RSD | H11: 1,250.00 RSD | I11: 1,250.00 RSD | P11: =SUM(Mesečno[[#This Row],[jan]:[Dec]]) -> 7,500.00 RSD
B12: Troškovi | C12: Državni porez na prihod | D12: 208.33 RSD | E12: 208.33 RSD | F12: 208.33 RSD | G12: 208.33 RSD | H12: 208.33 RSD | I12: 208.33 RSD | P12: =SUM(Mesečno[[#This Row],[jan]:[Dec]]) -> 1,250.00 RSD
B13: Troškovi | C13: Porez na vozila/naknade | D13: 16.67 RSD | E13: 16.67 RSD | F13: 16.67 RSD | G13: 16.67 RSD | H13: 16.67 RSD | I13: 16.67 RSD | P13: =SUM(Mesečno[[#This Row],[jan]:[Dec]]) -> 100.00 RSD
B14: Troškovi | C14: Otplata vozila | D14: 333.33 RSD | E14: 333.33 RSD | F14: 333.33 RSD | G14: 333.33 RSD | H14: 333.33 RSD | I14: 333.33 RSD | P14: =SUM(Mesečno[[#This Row],[jan]:[Dec]]) -> 2,000.00 RSD
B15: Troškovi | C15: Hipoteka/najamnina | D15: 1,250.00 RSD | E15: 1,250.00 RSD | F15: 1,250.00 RSD | G15: 1,250.00 RSD | H15: 1,250.00 RSD | I15: 1,250.00 RSD | P15: =SUM(Mesečno[[#This Row],[jan]:[Dec]]) -> 7,500.00 RSD
B16: Troškovi | C16: Osiguranje | D16: 25.00 RSD | E16: 25.00 RSD | F16: 25.00 RSD | G16: 25.00 RSD | H16: 25.00 RSD | I16: 25.00 RSD | P16: =SUM(Mesečno[[#This Row],[jan]:[Dec]]) -> 150.00 RSD
B17: Troškovi | C17: Struja | D17: 100.00 RSD | E17: 100.00 RSD | F17: 100.00 RSD | G17: 100.00 RSD | H17: 100.00 RSD | I17: 100.00 RSD | P17: =SUM(Mesečno[[#This Row],[jan]:[Dec]]) -> 600.00 RSD
B18: Troškovi | C18: Gas | D18: 50.00 RSD | E18: 50.00 RSD | F18: 50.00 RSD | G18: 50.00 RSD | H18: 50.00 RSD | I18: 50.00 RSD | P18: =SUM(Mesečno[[#This Row],[jan]:[Dec]]) -> 300.00 RSD
B19: Troškovi | C19: Voda | D19: 50.00 RSD | E19: 50.00 RSD | F19: 50.00 RSD | G19: 50.00 RSD | H19: 50.00 RSD | I19: 50.00 RSD | P19: =SUM(Mesečno[[#This Row],[jan]:[Dec]]) -> 300.00 RSD
B20: Troškovi | C20: Kanalizacija | D20: 25.00 RSD | E20: 25.00 RSD | F20: 25.00 RSD | G20: 25.00 RSD | H20: 25.00 RSD | I20: 25.00 RSD | P20: =SUM(Mesečno[[#This Row],[jan]:[Dec]]) -> 150.00 RSD
B21: Troškovi | C21: Smeće | D21: 12.50 RSD | E21: 12.50 RSD | F21: 12.50 RSD | G21: 12.50 RSD | H21: 12.50 RSD | I21: 12.50 RSD | P21: =SUM(Mesečno[[#This Row],[jan]:[Dec]]) -> 75.00 RSD
B22: Troškovi | C22: Telefon | D22: 50.00 RSD | E22: 50.00 RSD | F22: 50.00 RSD | G22: 50.00 RSD | H22: 50.00 RSD | I22: 50.00 RSD | P22: =SUM(Mesečno[[#This Row],[jan]:[Dec]]) -> 300.00 RSD
B23: Troškovi | C23: Internet | D23: 50.00 RSD | E23: 50.00 RSD | F23: 50.00 RSD | G23: 50.00 RSD | H23: 50.00 RSD | I23: 50.00 RSD | P23: =SUM(Mesečno[[#This Row],[jan]:[Dec]]) -> 300.00 RSD
B24: Troškovi | C24: Invalidske premije | D24: 125.00 RSD | E24: 125.00 RSD | F24: 125.00 RSD | G24: 125.00 RSD | H24: 125.00 RSD | I24: 125.00 RSD | P24: =SUM(Mesečno[[#This Row],[jan]:[Dec]]) -> 750.00 RSD
B25: Troškovi | C25: Hrana | D25: 400.00 RSD | E25: 500.00 RSD | F25: 450.00 RSD | G25: 400.00 RSD | H25: 450.00 RSD | I25: 425.00 RSD | P25: =SUM(Mesečno[[#This Row],[jan]:[Dec]]) -> 2,625.00 RSD
B26: Troškovi | C26: Odeća | D26: 50.00 RSD | E26: 75.00 RSD | F26: 100.00 RSD | G26: 75.00 RSD | H26: 125.00 RSD | I26: 75.00 RSD | P26: =SUM(Mesečno[[#This Row],[jan]:[Dec]]) -> 500.00 RSD
B27: Troškovi | C27: Medicinski/zubni/Rx | D27: 50.00 RSD | E27: 10.00 RSD | F27: 25.00 RSD | G27: 25.00 RSD | H27: 20.00 RSD | I27: 70.00 RSD | P27: =SUM(Mesečno[[#This Row],[jan]:[Dec]]) -> 200.00 RSD
B28: Troškovi | C28: Autobus | D28: 30.00 RSD | E28: 30.00 RSD | F28: 30.00 RSD | G28: 20.00 RSD | H28: 30.00 RSD | I28: 30.00 RSD | P28: =SUM(Mesečno[[#This Row],[jan]:[Dec]]) -> 170.00 RSD
B29: Troškovi | C29: Drugo 2 | D29: 0.00 RSD | E29: 0.00 RSD | F29: 0.00 RSD | G29: 0.00 RSD | H29: 0.00 RSD | I29: 0.00 RSD | P29: =SUM(Mesečno[[#This Row],[jan]:[Dec]]) -> 0.00 RSD
B30: Troškovi | C30: Drugo 3 | D30: 0.00 RSD | E30: 0.00 RSD | F30: 0.00 RSD | G30: 0.00 RSD | H30: 0.00 RSD | I30: 0.00 RSD | P30: =SUM(Mesečno[[#This Row],[jan]:[Dec]]) -> 0.00 RSD
B31: Troškovi | C31: Drugo 4 | D31: 0.00 RSD | E31: 0.00 RSD | F31: 0.00 RSD | G31: 0.00 RSD | H31: 0.00 RSD | I31: 0.00 RSD | P31: =SUM(Mesečno[[#This Row],[jan]:[Dec]]) -> 0.00 RSD
B32: Opcionalni | C32: Večere | D32: 50.00 RSD | E32: 150.00 RSD | F32: 100.00 RSD | G32: 50.00 RSD | H32: 150.00 RSD | I32: 100.00 RSD | P32: =SUM(Mesečno[[#This Row],[jan]:[Dec]]) -> 600.00 RSD
B33: Opcionalni | C33: Pokloni | D33: 25.00 RSD | E33: 75.00 RSD | F33: 50.00 RSD | G33: 25.00 RSD | H33: 75.00 RSD | I33: 50.00 RSD | P33: =SUM(Mesečno[[#This Row],[jan]:[Dec]]) -> 300.00 RSD
B34: Opcionalni | C34: Putovanja | D34: 0.00 RSD | E34: 0.00 RSD | F34: 1,000.00 RSD | G34: 0.00 RSD | H34: 0.00 RSD | I34: 1,000.00 RSD | P34: =SUM(Mesečno[[#This Row],[jan]:[Dec]]) -> 2,000.00 RSD
B35: Opcionalni | C35: Zabava | D35: 50.00 RSD | E35: 150.00 RSD | F35: 100.00 RSD | G35: 50.00 RSD | H35: 150.00 RSD | I35: 100.00 RSD | P35: =SUM(Mesečno[[#This Row],[jan]:[Dec]]) -> 600.00 RSD
B36: Opcionalni | C36: Lična nega | D36: 15.00 RSD | E36: 25.00 RSD | F36: 35.00 RSD | G36: 15.00 RSD | H36: 25.00 RSD | I36: 35.00 RSD | P36: =SUM(Mesečno[[#This Row],[jan]:[Dec]]) -> 150.00 RSD
B37: Opcionalni | C37: Kupovina | D37: 100.00 RSD | E37: 200.00 RSD | F37: 150.00 RSD | G37: 175.00 RSD | H37: 150.00 RSD | I37: 175.00 RSD | P37: =SUM(Mesečno[[#This Row],[jan]:[Dec]]) -> 950.00 RSD
B38: Opcionalni | C38: Dobrotvorni prilog | D38: 50.00 RSD | E38: 50.00 RSD | F38: 50.00 RSD | G38: 50.00 RSD | H38: 50.00 RSD | I38: 50.00 RSD | P38: =SUM(Mesečno[[#This Row],[jan]:[Dec]]) -> 300.00 RSD
B39: Opcionalni | C39: Klub/članstva | D39: 25.00 RSD | E39: 25.00 RSD | F39: 25.00 RSD | G39: 25.00 RSD | H39: 25.00 RSD | I39: 25.00 RSD | P39: =SUM(Mesečno[[#This Row],[jan]:[Dec]]) -> 150.00 RSD
B40: Opcionalni | C40: Radovi u kući | D40: 400.00 RSD | E40: 400.00 RSD | F40: 400.00 RSD | G40: 400.00 RSD | H40: 400.00 RSD | I40: 400.00 RSD | P40: =SUM(Mesečno[[#This Row],[jan]:[Dec]]) -> 2,400.00 RSD
B41: Opcionalni | C41: Drugo 1 | D41: 0.00 RSD | E41: 0.00 RSD | F41: 0.00 RSD | G41: 0.00 RSD | H41: 0.00 RSD | I41: 0.00 RSD | P41: =SUM(Mesečno[[#This Row],[jan]:[Dec]]) -> 0.00 RSD
B42: Opcionalni | C42: Drugo 2 | D42: 0.00 RSD | E42: 0.00 RSD | F42: 0.00 RSD | G42: 0.00 RSD | H42: 0.00 RSD | I42: 0.00 RSD | P42: =SUM(Mesečno[[#This Row],[jan]:[Dec]]) -> 0.00 RSD
B43: Štednja | C43: Rezerve gotovine | D43: 416.67 RSD | E43: 416.67 RSD | F43: 416.67 RSD | G43: 416.67 RSD | H43: 416.67 RSD | I43: 416.67 RSD | P43: =SUM(Mesečno[[#This Row],[jan]:[Dec]]) -> 2,500.00 RSD
B44: Štednja | C44: 401(k)/itd. | D44: 1,000.00 RSD | E44: 1,000.00 RSD | F44: 1,000.00 RSD | G44: 1,000.00 RSD | H44: 1,000.00 RSD | I44: 1,000.00 RSD | P44: =SUM(Mesečno[[#This Row],[jan]:[Dec]]) -> 6,000.00 RSD
B45: Štednja | C45: Štedni račun | D45: 500.00 RSD | E45: 500.00 RSD | F45: 500.00 RSD | G45: 500.00 RSD | H45: 500.00 RSD | I45: 500.00 RSD | P45: =SUM(Mesečno[[#This Row],[jan]:[Dec]]) -> 3,000.00 RSD
B46: Štednja | C46: Drugo 1 | D46: 0.00 RSD | E46: 0.00 RSD | F46: 0.00 RSD | G46: 0.00 RSD | H46: 0.00 RSD | I46: 0.00 RSD | P46: =SUM(Mesečno[[#This Row],[jan]:[Dec]]) -> 0.00 RSD
B47: Štednja | C47: Drugo 2 | D47: 0.00 RSD | E47: 0.00 RSD | F47: 0.00 RSD | G47: 0.00 RSD | H47: 0.00 RSD | I47: 0.00 RSD | P47: =SUM(Mesečno[[#This Row],[jan]:[Dec]]) -> 0.00 RSD
B48: Zbir | D48: =SUMIF(Mesečno[Tip],"Prihod",Mesečno[jan])-SUMIF(Mesečno[Tip],"<>Prihod",Mesečno[jan]) -> 3,692.50 RSD | E48: =SUMIF(Mesečno[Tip],"Prihod",Mesečno[feb])-SUMIF(Mesečno[Tip],"<>Prihod",Mesečno[feb]) -> 3,247.50 RSD | F48: =SUMIF(Mesečno[Tip],"Prihod",Mesečno[mar])-SUMIF(Mesečno[Tip],"<>Prihod",Mesečno[mar]) -> 2,522.50 RSD | G48: =SUMIF(Mesečno[Tip],"Prihod",Mesečno[Apr])-SUMIF(Mesečno[Tip],"<>Prihod",Mesečno[Apr]) -> 3,427.50 RSD | H48: =SUMIF(Mesečno[Tip],"Prihod",Mesečno[Maj])-SUMIF(Mesečno[Tip],"<>Prihod",Mesečno[Maj]) -> 2,887.50 RSD | I48: =SUMIF(Mesečno[Tip],"Prihod",Mesečno[Jun])-SUMIF(Mesečno[Tip],"<>Prihod",Mesečno[Jun]) -> 2,602.50 RSD | J48: =SUMIF(Mesečno[Tip],"Prihod",Mesečno[Jul])-SUMIF(Mesečno[Tip],"<>Prihod",Mesečno[Jul]) -> 0.00 RSD | K48: =SUMIF(Mesečno[Tip],"Prihod",Mesečno[Avg])-SUMIF(Mesečno[Tip],"<>Prihod",Mesečno[Avg]) -> 0.00 RSD | L48: =SUMIF(Mesečno[Tip],"Prihod",Mesečno[Sep])-SUMIF(Mesečno[Tip],"<>Prihod",Mesečno[Sep]) -> 0.00 RSD | M48: =SUMIF(Mesečno[Tip],"Prihod",Mesečno[Okt])-SUMIF(Mesečno[Tip],"<>Prihod",Mesečno[Okt]) -> 0.00 RSD | N48: =SUMIF(Mesečno[Tip],"Prihod",Mesečno[Nov])-SUMIF(Mesečno[Tip],"<>Prihod",Mesečno[Nov]) -> 0.00 RSD | O48: =SUMIF(Mesečno[Tip],"Prihod",Mesečno[Dec])-SUMIF(Mesečno[Tip],"<>Prihod",Mesečno[Dec]) -> 0.00 RSD | P48: =SUMIF(Mesečno[Tip],"Prihod",Mesečno[Zbir])-SUMIF(Mesečno[Tip],"<>Prihod",Mesečno[Zbir]) -> 18,380.00 RSD

Sheet Godišnji tok novca
B1: LIČNI TOK NOVCA
C2: Ukupan tok novca do danas: | D2: =AnnualCashFlowToDate -> 42,250.00 RSD | G2: Ovo je godišnja procena. Koristite ovaj radni list ako želite da prikažete godišnje iznose sa procenjenim mesečnim vrednostima. Koristite radne listove „Prihod“, „Troškovi“, „Diskrecioni“ i „Štednja“ da biste uneli stavke.
B4: REZIME PRIHODA | F4: REZIME TROŠKOVA | J4: REZIME DISKRECIONIH TROŠKOVA | N4: REZIME UŠTEDA
B5: Ukupno godišnje: | C5: =Prihod!C11 -> 125,000.00 RSD | F5: Ukupno godišnje: | G5: =Troškovi[[#Totals],[Godišnji ]] -> 46,500.00 RSD | J5: Ukupno godišnje: | K5: =Diskreciono[[#Totals],[Godišnji ]] -> 13,250.00 RSD | N5: Ukupno godišnje: | O5: =Štednja[[#Totals],[Godišnji ]] -> 23,000.00 RSD
B8: Ukupno mesečno: | C8: =Prihod!D11 -> 10,416.67 RSD | F8: Ukupno mesečno: | G8: =Troškovi[[#Totals],[Mesečna ]] -> 3,875.00 RSD | J8: Ukupno mesečno: | K8: =Diskreciono[[#Totals],[Mesečna ]] -> 1,104.17 RSD | N8: Ukupno mesečno: | O8: =Štednja!D10 -> 1,916.67 RSD
R10: Oznake redova | S10: Godišnji prihod | U10: Oznake redova | V10: Zbir godišnje | X10: Oznake redova | Y10: Zbir godišnje | AA10: Oznake redova | AB10: Zbir godišnje

Sheet Prihod
B1: LIČNI TOK NOVCA
C2: Ukupan tok novca do danas: | D2: =AnnualCashFlowToDate -> 42,250.00 RSD | F2: Ovo je godišnja procena. Koristite ovaj radni list ako želite da prikažete godišnje iznose sa procenjenim mesečnim vrednostima. Ako želite da dodate dnevne stavke u tabele, procenite njihov godišnji iznos/vrednost i postavite vrednost u kolonu „Godišnji“.
B4: Prihod | C4: Godišnji | D4: Mesečna
B5: Plata | C5: 90,000.00 RSD | D5: =Prihod[[#This Row],[Godišnji ]]/12 -> 7,500.00 RSD
B6: Provizija/bonus | C6: 5,000.00 RSD | D6: =Prihod[[#This Row],[Godišnji ]]/12 -> 416.67 RSD
B7: Drugo 1 | C7: 30,000.00 RSD | D7: =Prihod[[#This Row],[Godišnji ]]/12 -> 2,500.00 RSD
B8: Drugo 2 | C8: 0.00 RSD | D8: =Prihod[[#This Row],[Godišnji ]]/12 -> 0.00 RSD
B9: Drugo 3 | C9: 0.00 RSD | D9: =Prihod[[#This Row],[Godišnji ]]/12 -> 0.00 RSD
B10: Drugo 4 | C10: 0.00 RSD | D10: =Prihod[[#This Row],[Godišnji ]]/12 -> 0.00 RSD
B11: Zbir | C11: =SUBTOTAL(109,Prihod[[Godišnji ]]) -> 125,000.00 RSD | D11: =SUBTOTAL(109,Prihod[[Mesečna ]]) -> 10,416.67 RSD

Sheet Troškovi
B1: LIČNI TOK NOVCA
C2: Ukupan tok novca do danas: | D2: =AnnualCashFlowToDate -> 42,250.00 RSD | F2: Ovo je godišnja procena. Ako želite da vidite godišnje iznose sa predviđenim mesečnim vrednostima, koristite ovaj radni list Ako želite da dodate dnevne stavke u tabele, procenite njihov godišnji iznos/vrednost i postavite vrednost u kolonu „Godišnji“.
B4: Troškovi | C4: Godišnji | D4: Mesečna
B5: Savezni/SS/zdravstvena zaštita | C5: 12,500 RSD | D5: =Troškovi[[#This Row],[Godišnji ]]/12 -> 1,042 RSD
B6: Državni porez na prihod | C6: 2,500 RSD | D6: =Troškovi[[#This Row],[Godišnji ]]/12 -> 208 RSD
B7: Porez na vozila/naknade | C7: 200 RSD | D7: =Troškovi[[#This Row],[Godišnji ]]/12 -> 17 RSD
B8: Otplata vozila | C8: 4,000 RSD | D8: =Troškovi[[#This Row],[Godišnji ]]/12 -> 333 RSD
B9: Hipoteka/najamnina | C9: 15,000 RSD | D9: =Troškovi[[#This Row],[Godišnji ]]/12 -> 1,250 RSD
B10: Osiguranje | C10: 250 RSD | D10: =Troškovi[[#This Row],[Godišnji ]]/12 -> 21 RSD
B11: Struja | C11: 1,200 RSD | D11: =Troškovi[[#This Row],[Godišnji ]]/12 -> 100 RSD
B12: Gas | C12: 600 RSD | D12: =Troškovi[[#This Row],[Godišnji ]]/12 -> 50 RSD
B13: Voda/kanalizacija | C13: 600 RSD | D13: =Troškovi[[#This Row],[Godišnji ]]/12 -> 50 RSD
B14: Smeće | C14: 150 RSD | D14: =Troškovi[[#This Row],[Godišnji ]]/12 -> 13 RSD
B15: Telefon | C15: 600 RSD | D15: =Troškovi[[#This Row],[Godišnji ]]/12 -> 50 RSD
B16: Internet | C16: 600 RSD | D16: =Troškovi[[#This Row],[Godišnji ]]/12 -> 50 RSD
B17: Invalidske premije | C17: 1,500 RSD | D17: =Troškovi[[#This Row],[Godišnji ]]/12 -> 125 RSD
B18: Hrana | C18: 5,000 RSD | D18: =Troškovi[[#This Row],[Godišnji ]]/12 -> 417 RSD
B19: Odeća | C19: 1,200 RSD | D19: =Troškovi[[#This Row],[Godišnji ]]/12 -> 100 RSD
B20: Medicinski/zubni/Rx | C20: 600 RSD | D20: =Troškovi[[#This Row],[Godišnji ]]/12 -> 50 RSD
B21: Drugo 1 | C21: 0 RSD | D21: =Troškovi[[#This Row],[Godišnji ]]/12 -> 0 RSD
B22: Drugo 2 | C22: 0 RSD | D22: =Troškovi[[#This Row],[Godišnji ]]/12 -> 0 RSD
B23: Zbir | C23: =SUBTOTAL(109,Troškovi[[Godišnji ]]) -> 46,500 RSD | D23: =SUBTOTAL(109,Troškovi[[Mesečna ]]) -> 3,875 RSD

Sheet Opcionalni
B1: LIČNI TOK NOVCA
C2: Ukupan tok novca do danas: | D2: =AnnualCashFlowToDate -> 42,250.00 RSD | F2: Ovo je godišnja procena. Ako želite da vidite godišnje iznose sa predviđenim mesečnim vrednostima, koristite ovaj radni list Ako želite da dodate dnevne stavke u tabele, procenite njihov godišnji iznos/vrednost i postavite vrednost u kolonu „Godišnji“.
B4: Opcionalni | C4: Godišnji | D4: Mesečna
B5: Restorani | C5: 1,200.00 RSD | D5: =Diskreciono[[#This Row],[Godišnji ]]/12 -> 100.00 RSD
B6: Pokloni | C6: 600.00 RSD | D6: =Diskreciono[[#This Row],[Godišnji ]]/12 -> 50.00 RSD
B7: Putovanja | C7: 2,250.00 RSD | D7: =Diskreciono[[#This Row],[Godišnji ]]/12 -> 187.50 RSD
B8: Zabava | C8: 1,200.00 RSD | D8: =Diskreciono[[#This Row],[Godišnji ]]/12 -> 100.00 RSD
B9: Lična nega | C9: 300.00 RSD | D9: =Diskreciono[[#This Row],[Godišnji ]]/12 -> 25.00 RSD
B10: Kupovina | C10: 2,000.00 RSD | D10: =Diskreciono[[#This Row],[Godišnji ]]/12 -> 166.67 RSD
B11: Dobrotvorni prilog | C11: 600.00 RSD | D11: =Diskreciono[[#This Row],[Godišnji ]]/12 -> 50.00 RSD
B12: Klub/članstva | C12: 300.00 RSD | D12: =Diskreciono[[#This Row],[Godišnji ]]/12 -> 25.00 RSD
B13: Radovi u kući | C13: 4,800.00 RSD | D13: =Diskreciono[[#This Row],[Godišnji ]]/12 -> 400.00 RSD
B14: Drugo 1 | C14: 0.00 RSD | D14: =Diskreciono[[#This Row],[Godišnji ]]/12 -> 0.00 RSD
B15: Drugo 2 | C15: 0.00 RSD | D15: =Diskreciono[[#This Row],[Godišnji ]]/12 -> 0.00 RSD
B16: Zbir | C16: =SUBTOTAL(109,Diskreciono[[Godišnji ]]) -> 13,250.00 RSD | D16: =SUBTOTAL(109,Diskreciono[[Mesečna ]]) -> 1,104.17 RSD

Sheet Štednja
B1: LIČNI TOK NOVCA
C2: Ukupan tok novca do danas: | D2: =AnnualCashFlowToDate -> 42,250.00 RSD | F2: Ovo je godišnja procena. Ako želite da vidite godišnje iznose sa predviđenim mesečnim vrednostima, koristite ovaj radni list Ako želite da dodate dnevne stavke u tabele, procenite njihov godišnji iznos/vrednost i postavite vrednost u kolonu „Godišnji“.
B4: Štednja | C4: Godišnji | D4: Mesečna
B5: Rezerve gotovine | C5: 5,000.00 RSD | D5: =Štednja[[#This Row],[Godišnji ]]/12 -> 416.67 RSD
B6: 401(k)/itd. | C6: 12,000.00 RSD | D6: =Štednja[[#This Row],[Godišnji ]]/12 -> 1,000.00 RSD
B7: Štednja/investicija | C7: 6,000.00 RSD | D7: =Štednja[[#This Row],[Godišnji ]]/12 -> 500.00 RSD
B8: Drugo 1 | C8: 0.00 RSD | D8: =Štednja[[#This Row],[Godišnji ]]/12 -> 0.00 RSD
B9: Drugo 2 | C9: 0.00 RSD | D9: =Štednja[[#This Row],[Godišnji ]]/12 -> 0.00 RSD
B10: Zbir | C10: =SUBTOTAL(109,Štednja[[Godišnji ]]) -> 23,000.00 RSD | D10: =SUBTOTAL(109,Štednja[[Mesečna ]]) -> 1,916.67 RSD
